bitfinex-derivatives/quotes_BTCF0:USTF0_20220103
["timestamp","ask_amount","ask_price","bid_price","bid_amount"]
[1641229509081,0.189,46594.0,46593.0,0.02145569]
[1641229509281,0.189,46594.0,46593.0,0.20145569]
[1641229509482,1.9322,46608.0,46593.0,0.02245569]
[1641229509682,1.9322,46608.0,46597.0,0.18]
[1641229509881,0.009794,46605.0,46594.0,0.07265]
[1641229510082,0.009794,46605.0,46599.0,0.14033567]
[1641229510083,0.1911,46600.0,46599.0,0.14033567]
[1641229511084,0.1911,46600.0,46599.0,0.16179054]
[1641229511284,0.0001,46610.0,46599.0,0.48286654]
[1641229511488,0.23398294,46621.0,46609.0,0.18]
[1641229511683,0.23398294,46621.0,46609.0,0.06428]
[1641229511883,0.23398294,46621.0,46610.0,0.319408]
[1641229512084,0.23398294,46621.0,46620.0,0.28067134]
[1641229512283,0.23398294,46621.0,46620.0,0.35859134]
[1641229512584,0.59180479,46627.0,46620.0,0.35859134]
[1641229512787,0.59180479,46627.0,46620.0,0.38003734]
[1641229512984,0.0001,46630.0,46620.0,0.70011034]
[1641229513184,0.0001,46630.0,46620.0,0.67866434]
[1641229513384,0.0001,46630.0,46629.0,0.02144618]
[1641229513991,0.0001,46630.0,46620.0,0.28067134]
[1641229514193,0.0001,46630.0,46629.0,0.32033567]
[1641229514591,0.0001,46630.0,46629.0,0.34178098]
[1641229514792,0.1801,46630.0,46629.0,0.34178098]
[1641229514993,0.189894,46630.0,46620.0,0.14033567]
[1641229515194,0.18,46621.0,46620.0,0.14033567]
[1641229515397,0.181,46621.0,46616.0,0.58096817]
[1641229515594,0.189794,46622.0,46616.0,0.58096817]
[1641229516094,0.009794,46622.0,46616.0,0.72130384]
[1641229516294,0.196794,46622.0,46616.0,0.72130384]
[1641229516497,0.196794,46622.0,46617.0,0.58096817]
[1641229517501,0.196794,46622.0,46617.0,0.02145167]
[1641229517502,0.009794,46622.0,46617.0,0.02145167]
[1641229518300,0.197794,46622.0,46617.0,0.02145167]
[1641229518500,0.18,46620.0,46617.0,0.02145167]
[1641229518700,0.26154,46620.0,46617.0,0.02145167]
[1641229518902,0.08154,46620.0,46617.0,0.02145167]
[1641229519205,0.18,46618.0,46588.0,1.9117]
[1641229519402,0.18,46615.0,46592.0,0.18]
[1641229519601,0.18,46615.0,46599.0,0.18]
[1641229519801,0.009794,46617.0,46601.0,1.33377685]
[1641229520001,0.009794,46617.0,46604.0,0.96874029]
[1641229520201,0.14033567,46609.0,46608.0,0.02145549]
[1641229521502,0.14033567,46613.0,46608.0,0.02145549]
[1641229521702,0.14033567,46613.0,46609.0,0.18]
[1641229521903,0.14033567,46613.0,46608.0,0.34191949]
[1641229522105,0.14033567,46618.0,46608.0,0.99019578]
[1641229522303,0.189,46613.0,46608.0,0.99019578]
[1641229522503,0.189,46613.0,46608.0,0.96874029]
[1641229522905,0.189,46613.0,46612.0,0.02145201]
[1641229523510,0.14033567,46618.0,46612.0,0.02145201]
[1641229523704,0.14033567,46618.0,46610.0,0.09448]
[1641229523904,0.14033567,46618.0,46613.0,0.320342]
[1641229524306,0.33033567,46618.0,46609.0,0.96874029]
[1641229524506,0.33033567,46618.0,46612.0,0.96874029]
[1641229525110,0.33033567,46618.0,46617.0,0.02145094]
[1641229525512,0.14033567,46618.0,46617.0,0.02145094]
[1641229526211,0.32833567,46618.0,46617.0,0.02145094]
[1641229526613,0.32833567,46618.0,46614.0,0.02145241]
[1641229526811,0.18,46617.0,46614.0,0.02145241]
[1641229527013,0.39898567,46618.0,46614.0,0.02145241]
[1641229527413,0.39898567,46618.0,46610.0,1.15076019]
[1641229527613,0.21098567,46618.0,46610.0,1.15076019]
[1641229528016,0.21098567,46618.0,46613.0,0.02145288]
[1641229528215,0.32833567,46618.0,46613.0,0.02145288]
[1641229528415,0.18,46617.0,46613.0,0.02145288]
[1641229528616,0.23748,46617.0,46613.0,0.02145288]
[1641229529016,0.18,46614.0,46610.0,0.80590961]
[1641229529417,0.23748,46617.0,46610.0,0.80590961]
[1641229529619,0.18,46616.0,46610.0,0.80590961]
[1641229529820,0.18,46612.0,46610.0,0.80590961]
[1641229530020,0.009794,46614.0,46610.0,0.80590961]
[1641229530220,0.18,46615.0,46608.0,2.92532873]
[1641229530419,0.18,46615.0,46610.0,0.57642693]
[1641229530819,0.185,46616.0,46610.0,0.57642693]
[1641229531320,0.185,46616.0,46609.0,1.54508586]
[1641229531522,0.14033567,46618.0,46609.0,1.54508586]
[1641229532321,0.33133567,46618.0,46610.0,0.57642693]
[1641229532723,0.33133567,46618.0,46613.0,0.02145324]
[1641229533124,0.33133567,46618.0,46610.0,0.57642693]
[1641229533322,0.33133567,46618.0,46613.0,0.02145323]
[1641229533523,0.14033567,46618.0,46611.0,1.54508586]
[1641229533722,0.14033567,46618.0,46613.0,0.02145323]
[1641229534322,0.32833567,46618.0,46613.0,0.02145323]
[1641229534822,0.32833567,46618.0,46615.0,0.02145223]
[1641229535022,0.32833567,46618.0,46615.0,0.07868]
[1641229535222,0.32833567,46618.0,46617.0,0.02145052]
[1641229535622,0.14033567,46618.0,46617.0,0.02145052]
[1641229536223,0.32833567,46618.0,46617.0,0.02145052]
[1641229537426,0.188,46618.0,46617.0,0.18]
[1641229537627,1.82137028,46645.0,46617.0,0.18]
[1641229537825,0.25392633,46630.0,46626.0,0.18]
[1641229538025,0.1329291,46628.0,46627.0,0.10158802]
[1641229538225,0.3229291,46628.0,46627.0,0.16277889]
[1641229539326,0.3229291,46628.0,46627.0,0.02144322]
[1641229539626,0.1329291,46628.0,46627.0,0.02144322]
[1641229540028,0.1329291,46628.0,46627.0,0.09715322]
[1641229540228,0.1329291,46628.0,46627.0,0.28415322]
[1641229540428,0.25392633,46630.0,46627.0,0.28415322]
[1641229540629,0.0001,46630.0,46627.0,0.28415322]
[1641229541729,0.0001,46630.0,46627.0,0.09715322]
[1641229542329,0.1331,46630.0,46627.0,0.28315322]
[1641229543830,0.0001,46630.0,46627.0,0.09715322]
[1641229544032,0.0001,46630.0,46627.0,0.02144322]
[1641229544339,0.1831,46630.0,46627.0,0.186]
[1641229545130,0.1831,46630.0,46628.0,0.02144603]
[1641229545530,0.0001,46630.0,46628.0,0.02144603]
[1641229546232,0.1771,46630.0,46628.0,0.19244603]
[1641229547731,0.0001,46630.0,46628.0,0.02144603]
[1641229548331,0.1681,46630.0,46629.0,0.02144495]
[1641229548531,0.3481,46630.0,46629.0,0.02144495]
[1641229548735,0.3481,46630.0,46626.0,0.02144688]
[1641229548932,0.43013,46630.0,46626.0,0.02144688]
[1641229549333,0.25013,46630.0,46626.0,0.02144688]
[1641229549534,0.08213,46630.0,46626.0,0.02144688]
[1641229550450,0.18,46627.0,46622.0,0.57642693]
[1641229550636,0.18,46623.0,46622.0,0.57642693]
[1641229550833,0.18,46623.0,46619.0,0.0214502]
[1641229551134,0.18,46622.0,46619.0,0.0214502]
[1641229551335,0.009794,46626.0,46619.0,0.0214502]
[1641229551935,0.84740705,46622.0,46615.0,0.02145189]
[1641229552333,0.14033567,46620.0,46615.0,0.02145189]
[1641229552633,0.14033567,46620.0,46619.0,0.02144976]
[1641229553434,0.14033567,46620.0,46619.0,0.02244976]
[1641229554234,0.14033567,46620.0,46619.0,0.02144976]
[1641229554435,0.32933567,46620.0,46615.0,0.021452]
[1641229555437,0.32933567,46620.0,46615.0,0.201452]
[1641229555637,0.14033567,46620.0,46615.0,0.201452]
[1641229555837,0.14033567,46620.0,46615.0,0.021452]
[1641229556039,0.14033567,46620.0,46615.0,0.201452]
[1641229556236,0.14033567,46620.0,46615.0,0.021452]
[1641229556440,0.32633567,46620.0,46615.0,0.021452]
[1641229556637,0.50633567,46620.0,46615.0,0.021452]
[1641229556837,0.18,46616.0,46615.0,0.021452]
[1641229557140,0.18,46616.0,42800.0,0.002]
[1641229557141,0.181,46616.0,46600.0,0.14033567]
[1641229557339,0.18,46607.0,46595.0,1.61544133]
[1641229557539,0.009794,46606.0,46595.0,1.61544133]
[1641229557740,0.18,46604.0,46595.0,1.61544133]
[1641229557955,0.009794,46606.0,46595.0,1.61544133]
[1641229558355,0.14033567,46601.0,46595.0,1.61544133]
[1641229558556,0.32033567,46601.0,46595.0,1.63690222]
[1641229558757,0.14033567,46601.0,46595.0,1.61544133]
[1641229558960,0.14033567,46601.0,46591.0,0.14033567]
[1641229559358,0.14033567,46601.0,46593.0,0.02146191]
[1641229559959,0.14033567,46601.0,46594.0,0.01210965]
[1641229560158,0.32033567,46601.0,46594.0,0.01210965]
[1641229560358,0.50833567,46601.0,46594.0,0.01210965]
[1641229560859,0.32833567,46601.0,46593.0,0.02146191]
[1641229561463,0.32833567,46601.0,46596.0,0.02146076]
[1641229561660,0.84772393,46597.0,46596.0,0.02146076]
[1641229562361,1.03372393,46597.0,46596.0,0.20145965]
[1641229562560,1.03372393,46597.0,46596.0,0.21456879]
[1641229562761,1.21103418,46600.0,46596.0,0.53658579]
[1641229562762,0.84772393,46598.0,46596.0,0.53658579]
[1641229562962,0.84772393,46598.0,46597.0,0.181]
[1641229563262,0.84772393,46598.0,46597.0,0.19310914]
[1641229563461,0.84772393,46598.0,46597.0,0.51473914]
[1641229564065,0.84772393,46598.0,46597.0,0.19410914]
[1641229564264,0.84772393,46598.0,46597.0,0.33444481]
[1641229564464,0.162,46598.0,46597.0,0.51544481]
[1641229564665,0.162,46598.0,46597.0,0.51444481]
[1641229564870,0.162,46598.0,46597.0,0.51544481]
[1641229565064,0.162,46598.0,46597.0,0.33544481]
[1641229565265,0.162,46598.0,46597.0,0.33444481]
[1641229565465,0.162,46598.0,46597.0,0.53589971]
[1641229565665,0.85751793,46603.0,46597.0,0.17489971]
[1641229565865,0.85751793,46603.0,46597.0,0.17389971]
[1641229566064,0.85751793,46603.0,46602.0,0.001]
[1641229566465,0.127,46603.0,46602.0,0.18]
[1641229566668,0.127,46603.0,46602.0,0.181]
[1641229566866,0.127,46603.0,46602.0,0.18]
[1641229567065,0.127,46603.0,46602.0,0.76871472]
[1641229567265,0.127,46603.0,46602.0,1.27240072]
[1641229567665,0.127,46603.0,46602.0,0.94871472]
[1641229567865,1.35136985,46606.0,46602.0,0.76871472]
[1641229568066,1.35136985,46606.0,46602.0,0.76771472]
[1641229568265,1.21103418,46606.0,46605.0,0.001]
[1641229568466,0.169,46606.0,46605.0,0.001]
[1641229568866,0.169,46606.0,46602.0,0.93960558]
[1641229569066,0.26261,46606.0,46602.0,0.93960558]
[1641229569668,0.26261,46606.0,46605.0,0.75560558]
[1641229569869,0.09361,46606.0,46605.0,0.75560558]
[1641229570571,0.26861,46606.0,46605.0,0.93460558]
[1641229571069,0.26861,46606.0,46605.0,1.50787412]
[1641229572073,0.26861,46606.0,46605.0,0.75226854]
[1641229572271,0.26861,46606.0,46605.0,0.179]
[1641229572470,0.40761,46606.0,46605.0,0.365]
[1641229573073,1.61847639,46606.0,46605.0,1.11092096]
[1641229573873,1.30447639,46606.0,46605.0,0.74592096]
[1641229574072,1.30447639,46606.0,46605.0,1.87281691]
[1641229574275,1.30447639,46606.0,46605.0,2.06492547]
[1641229574474,1.30447639,46606.0,46605.0,2.24992547]
[1641229574672,1.30447639,46606.0,46605.0,1.12402952]
[1641229574874,0.09361,46606.0,46605.0,0.94302952]
[1641229575074,1.21086639,46610.0,46605.0,0.94302952]
[1641229575275,1.21086639,46610.0,46609.0,0.001]
[1641229575774,1.21086639,46610.0,46607.0,0.18]
[1641229575976,1.21086639,46610.0,46609.0,0.001]
[1641229576376,1.21086639,46610.0,46607.0,0.18]
[1641229576577,1.21086639,46610.0,46609.0,0.184]
[1641229576978,1.21086639,46610.0,46609.0,0.185]
[1641229577176,1.21086639,46610.0,46609.0,0.93092096]
[1641229577375,1.35120206,46611.0,46609.0,0.95237342]
[1641229577576,1.35120206,46611.0,46610.0,0.001]
[1641229577775,1.35120206,46611.0,46609.0,0.95137342]
[1641229577776,1.35120206,46611.0,46609.0,0.76737342]
[1641229577978,1.35120206,46611.0,46610.0,0.001]
[1641229578176,1.35120206,46611.0,46610.0,0.74592096]
[1641229578577,1.52920206,46611.0,46610.0,0.92692096]
[1641229578879,1.52920206,46611.0,46610.0,0.92592096]
[1641229579177,1.52920206,46611.0,46610.0,1.73028688]
[1641229579777,0.14033567,46611.0,46610.0,1.54928688]
[1641229580180,0.32033567,46611.0,46610.0,1.54928688]
[1641229580579,0.46833567,46611.0,46610.0,0.96136592]
[1641229580882,0.28833567,46611.0,46610.0,0.158]
[1641229581278,0.46833567,46611.0,46610.0,0.158]
[1641229581778,0.14033567,46611.0,46605.0,0.57228172]
[1641229581979,0.14033567,46611.0,46604.0,0.02145702]
[1641229582580,0.31633567,46611.0,46604.0,0.19845702]
[1641229583781,0.14033567,46611.0,46604.0,0.02145702]
[1641229583983,0.14033567,46611.0,46601.0,0.18]
[1641229584285,0.14033567,46611.0,46610.0,0.02145405]
[1641229585481,0.14033567,46611.0,46610.0,0.11523405]
[1641229586582,0.30033567,46611.0,46610.0,0.28023405]
[1641229587885,0.14033567,46611.0,46610.0,0.11523405]
[1641229588487,0.29033567,46611.0,46610.0,0.27523405]
[1641229589287,0.29033567,46611.0,46610.0,0.27523237]
[1641229589891,0.14033567,46611.0,46610.0,0.11623237]
[1641229590389,0.14033567,46611.0,46610.0,0.11523237]
[1641229590591,0.28333567,46611.0,46610.0,0.26423237]
[1641229590990,0.46333567,46611.0,46610.0,0.26423237]
[1641229591193,0.55404967,46611.0,46610.0,0.149]
[1641229591591,0.55404967,46611.0,46610.0,0.0001]
[1641229591991,0.41204967,46611.0,46602.0,0.57167251]
[1641229592191,0.18,46608.0,46602.0,0.57167251]
[1641229592394,0.18,46608.0,46603.0,0.02145748]
[1641229592798,0.31712967,46611.0,46603.0,0.02145748]
[1641229592992,0.18,46608.0,46603.0,0.02145748]
[1641229593593,0.18,46605.0,46603.0,0.02145748]
[1641229593792,0.009794,46604.0,46597.0,0.57167251]
[1641229593992,0.009794,46604.0,46599.0,0.02145923]
[1641229594191,0.009794,46604.0,46598.0,0.01210991]
[1641229594392,0.14033567,46601.0,46599.0,0.02145923]
[1641229594592,0.22463567,46601.0,46599.0,0.02145923]
[1641229595794,1.07115289,46601.0,46600.0,0.70874322]
[1641229596395,1.25115289,46601.0,46600.0,0.70874322]
[1641229596594,1.41715289,46601.0,46600.0,0.70874322]
[1641229596894,0.57063567,46601.0,46600.0,0.70874322]
[1641229597096,0.57063567,46601.0,46600.0,1.50949044]
[1641229597295,0.57163567,46601.0,46600.0,1.50949044]
[1641229597599,0.57163567,46601.0,46600.0,1.11819044]
[1641229597796,0.40563567,46601.0,46600.0,1.11819044]
[1641229598298,0.40663567,46601.0,46598.0,1.14334501]
[1641229598497,0.002,46599.0,46598.0,1.14334501]
[1641229598696,0.011794,46599.0,46598.0,0.57212202]
[1641229599098,0.010794,46599.0,46598.0,0.57212202]
[1641229599312,0.009794,46599.0,46598.0,0.57212202]
[1641229599713,0.010794,46599.0,46598.0,0.57212202]
[1641229599915,0.010794,46599.0,46596.0,0.57212202]
[1641229600116,0.001,46597.0,46596.0,0.57212202]
[1641229600915,0.001,46597.0,46595.0,0.57212202]
[1641229601115,0.18,46596.0,46595.0,0.57212202]
[1641229601715,0.25455,46596.0,46595.0,0.57212202]
[1641229601914,0.25455,46596.0,46595.0,2.202e-05]
[1641229602115,0.25455,46596.0,46588.0,0.02146437]
[1641229602314,0.18,46593.0,46588.0,0.02146437]
[1641229602513,0.14033567,46590.0,46589.0,0.01211211]
[1641229603516,0.33012967,46590.0,46584.0,0.78152723]
[1641229603722,0.18,46585.0,46584.0,0.78152723]
[1641229604016,0.26096,46585.0,46584.0,0.78152723]
[1641229604216,0.26096,46585.0,46582.0,1.37201402]
[1641229604417,0.001,46583.0,46582.0,1.37201402]
[1641229604616,0.14133567,46583.0,46582.0,1.37201402]
[1641229604815,0.1481525,46583.0,46582.0,1.38412802]
[1641229605219,0.1481525,46583.0,46582.0,0.012114]
[1641229605617,0.1481525,46583.0,46579.0,0.012114]
[1641229605816,0.18,46581.0,46578.0,0.78152723]
[1641229606018,0.00681683,46582.0,46580.0,0.01211445]
[1641229606217,0.18,46581.0,46580.0,0.01211445]
[1641229606417,0.181,46581.0,46579.0,0.01211445]
[1641229606616,0.001,46580.0,46579.0,0.01211445]
[1641229607019,0.010794,46580.0,46579.0,0.01211445]
[1641229607217,0.010794,46580.0,46573.0,1.37201402]
[1641229607419,0.18,46574.0,46573.0,1.37201402]
[1641229608018,0.001,46574.0,46572.0,2.15354125]
[1641229608219,0.189794,46580.0,46572.0,2.15354125]
[1641229608419,0.00682017,46573.0,46572.0,2.15354125]
[1641229608619,0.14033567,46573.0,46572.0,2.15354125]
[1641229608920,0.14715584,46573.0,46572.0,2.15354125]
[1641229609418,0.14715584,46573.0,46572.0,0.78152723]
[1641229609619,1.17525676,46573.0,46568.0,0.78152723]
[1641229610019,0.00682017,46572.0,46568.0,0.78152723]
[1641229610421,0.85492109,46572.0,46568.0,0.78152723]
[1641229610620,1.01892109,46572.0,46567.0,0.02147342]
[1641229610821,0.00682017,46571.0,46567.0,0.02147342]
[1641229611624,0.85492109,46571.0,46567.0,0.02147342]
[1641229612223,0.00682017,46570.0,46567.0,0.02147342]
[1641229614327,0.00682017,46570.0,46568.0,0.55650522]
[1641229614527,0.17482017,46570.0,46568.0,0.55650522]
[1641229614928,0.00682017,46569.0,46567.0,0.02147342]
[1641229616029,0.00682017,46569.0,46568.0,0.02147209]
[1641229616329,0.14033567,46573.0,46568.0,0.28988209]
[1641229616330,0.00682017,46572.0,46568.0,0.28988209]
[1641229616529,0.00682017,46572.0,46571.0,0.20146962]
[1641229616731,0.14033567,46587.0,46571.0,0.20146962]
[1641229616930,0.14033567,46587.0,46577.0,0.18]
[1641229617333,0.14033567,46587.0,46582.0,0.20146552]
[1641229617531,3.8906,46602.0,46582.0,0.25333]
[1641229617730,0.18,46608.0,46590.0,0.18]
[1641229617933,0.009794,46606.0,46591.0,0.02146261]
[1641229618531,0.14033567,46602.0,46592.0,0.14033567]
[1641229618730,0.009794,46601.0,46592.0,0.14033567]
[1641229620535,0.166794,46601.0,46592.0,0.14033567]
[1641229621338,0.18,46599.0,46592.0,0.14033567]
[1641229621539,0.18,46596.0,46587.0,0.16180019]
[1641229621734,0.18,46592.0,46587.0,0.16180019]
[1641229621935,0.26488,46592.0,46587.0,0.16180019]
[1641229622535,0.24488,46592.0,46587.0,0.16180019]
[1641229623338,0.24488,46592.0,46577.0,2.19429377]
[1641229623339,0.181,46588.0,46577.0,2.10843567]
[1641229623540,0.18,46583.0,46577.0,2.10843567]
[1641229623737,0.001,46583.0,46577.0,0.14033567]
[1641229624137,0.002,46583.0,46577.0,0.14033567]
[1641229624338,0.18,46584.0,46577.0,0.14033567]
[1641229624539,0.157,46583.0,46577.0,0.14033567]
[1641229625743,0.32033567,46584.0,46577.0,0.14033567]
[1641229626039,0.14033567,46584.0,46577.0,0.14033567]
[1641229626241,0.14033567,46584.0,46583.0,0.20146628]
[1641229626540,0.29833567,46584.0,46583.0,0.20146628]
[1641229627942,0.14033567,46584.0,46583.0,0.20146628]
[1641229628444,0.29533567,46584.0,46583.0,0.20146628]
[1641229628742,0.156,46584.0,46583.0,0.20146628]
[1641229629143,0.155,46584.0,46583.0,0.20146628]
[1641229629744,0.84810092,46596.0,46583.0,0.20146628]
[1641229629944,0.84810092,46596.0,46590.0,0.18]
[1641229630147,0.84810092,46596.0,46590.0,0.26145]
[1641229630345,0.84810092,46596.0,46592.0,0.02146092]
[1641229630544,0.156,46593.0,46592.0,0.02146092]
[1641229630745,0.156,46593.0,46592.0,0.16179659]
[1641229630947,0.157,46593.0,46592.0,0.16179659]
[1641229631545,0.156,46593.0,46592.0,0.14033567]
[1641229631952,0.00945047,46593.0,46592.0,0.14033567]
[1641229632148,0.00945047,46593.0,46587.0,0.14033567]
[1641229632348,0.18,46589.0,46587.0,0.14033567]
[1641229632547,0.0861,46589.0,46587.0,0.14033567]
[1641229632748,0.00845047,46588.0,46584.0,0.5720067]
[1641229633552,0.00845047,46588.0,46582.0,0.14033567]
[1641229633749,0.00845047,46591.0,46582.0,0.14033567]
[1641229633948,0.00845047,46587.0,46582.0,0.14033567]
[1641229634149,0.00845047,46590.0,46582.0,0.14033567]
[1641229634550,0.00845047,46586.0,46582.0,0.16180248]
[1641229634749,0.154,46587.0,46582.0,0.16180248]
[1641229634952,0.00845047,46585.0,46582.0,0.16180248]
[1641229635453,0.00845047,46586.0,46582.0,0.16180248]
[1641229635652,0.00845047,46584.0,46582.0,0.16180248]
[1641229635854,0.00845047,46585.0,46582.0,0.16180248]
[1641229636055,0.00845047,46583.0,46582.0,0.16180248]
[1641229636453,0.00845047,46584.0,46582.0,0.16180248]
[1641229636653,0.00845047,46583.0,46582.0,0.16180248]
[1641229637152,0.00845047,46584.0,46582.0,0.16180248]
[1641229637354,0.00845047,46583.0,46582.0,0.16180248]
[1641229637854,0.00845047,46584.0,46582.0,0.16180248]
[1641229638056,0.00845047,46583.0,46582.0,0.16180248]
[1641229638659,0.158,46584.0,46582.0,0.16180248]
[1641229638858,0.00845047,46583.0,46582.0,0.16180248]
[1641229640061,0.00945047,46583.0,46582.0,0.16180248]
[1641229640260,0.00945047,46583.0,46582.0,0.14033567]
[1641229640467,0.16945047,46583.0,46582.0,0.14033567]
[1641229640667,0.16845047,46583.0,46582.0,0.14033567]
[1641229641667,0.16945047,46583.0,46582.0,0.14033567]
[1641229641868,0.00945047,46583.0,46582.0,0.14033567]
[1641229642469,0.16945047,46583.0,46582.0,0.14033567]
[1641229643772,0.00945047,46583.0,46582.0,0.14033567]
[1641229643971,0.00845047,46583.0,46582.0,0.14033567]
[1641229644272,1.02810092,46591.0,46582.0,0.14033567]
[1641229644273,0.00845047,46590.0,46582.0,0.14033567]
[1641229644470,0.158,46583.0,46582.0,0.14033567]
[1641229644671,0.159,46583.0,46582.0,0.14033567]
[1641229644871,0.16745047,46583.0,46582.0,0.14033567]
[1641229645872,0.00945047,46583.0,46582.0,0.14033567]
[1641229646474,0.17045047,46583.0,46582.0,0.14033567]
[1641229647872,0.00945047,46583.0,46582.0,0.14033567]
[1641229648472,0.17045047,46583.0,46582.0,0.14033567]
[1641229649773,0.00945047,46583.0,46582.0,0.14033567]
[1641229650575,0.17045047,46583.0,46582.0,0.14033567]
[1641229651778,0.00945047,46583.0,46582.0,0.14033567]
[1641229652076,0.19924447,46583.0,46577.0,0.14033567]
[1641229652277,0.18,46580.0,46577.0,0.14033567]
[1641229652476,0.18,46580.0,46572.0,0.3446]
[1641229652678,0.00845047,46579.0,46572.0,0.3446]
[1641229652875,0.01824447,46579.0,46572.0,0.3446]
[1641229653076,0.14033567,46576.0,46571.0,0.5720067]
[1641229653278,0.14033567,46576.0,46570.0,0.59347883]
[1641229653475,0.001,46571.0,46570.0,0.59347883]
[1641229653675,0.08901,46571.0,46570.0,0.59347883]
[1641229653877,0.09001,46571.0,46570.0,0.59347883]
[1641229654281,0.09846047,46571.0,46570.0,0.03358761]
[1641229654479,0.25346047,46571.0,46570.0,0.01211548]
[1641229654677,0.25346047,46571.0,46568.0,0.5720067]
[1641229654878,0.25146047,46571.0,46568.0,0.5720067]
[1641229655077,0.25146047,46571.0,46567.0,0.5720067]
[1641229655078,0.00845047,46570.0,46567.0,0.5720067]
[1641229655978,0.001,46568.0,46567.0,0.5720067]
[1641229656178,0.001,46568.0,46566.0,0.04147405]
[1641229656381,0.001,46567.0,46566.0,0.04147405]
[1641229656579,0.001,46567.0,46566.0,0.22247405]
[1641229656779,0.00945047,46567.0,46566.0,0.04147405]
[1641229656979,0.00945047,46567.0,46566.0,0.22247405]
[1641229657378,0.00945047,46567.0,46566.0,0.04247405]
[1641229657579,0.00945047,46567.0,46566.0,0.04147405]
[1641229657779,0.00945047,46567.0,46566.0,0.04247405]
[1641229657982,0.00945047,46567.0,46566.0,1.20667352]
[1641229658384,0.00945047,46567.0,46566.0,1.20567352]
[1641229658581,0.16045047,46567.0,46566.0,1.20567352]
[1641229658783,0.16045047,46567.0,46566.0,0.63366682]
[1641229658994,0.16045047,46567.0,46566.0,0.61219277]
[1641229659190,0.15945047,46567.0,46566.0,0.61219277]
[1641229659788,0.16045047,46567.0,46566.0,0.61219277]
[1641229659991,0.00945047,46567.0,46566.0,0.61219277]
[1641229660392,0.00845047,46567.0,46566.0,0.61219277]
[1641229660592,0.16645047,46567.0,46566.0,0.61219277]
[1641229660794,0.158,46567.0,46566.0,0.61219277]
[1641229660993,0.158,46567.0,46566.0,0.02]
[1641229661194,0.16645047,46567.0,46566.0,0.02]
[1641229661895,0.00845047,46567.0,46566.0,0.02]
[1641229662094,0.00945047,46567.0,46566.0,0.02]
[1641229662293,0.001,46567.0,46566.0,0.02]
[1641229662492,0.16945047,46567.0,46566.0,0.02]
[1641229662894,0.161,46567.0,46566.0,0.02]
[1641229663094,0.16945047,46567.0,46566.0,0.02]
[1641229663495,0.16845047,46567.0,46566.0,1.18862756]
[1641229663994,0.00845047,46567.0,46566.0,0.02]
[1641229664396,0.00845047,46570.0,46566.0,0.02]
[1641229664594,0.16645047,46567.0,46566.0,0.02]
[1641229664797,0.158,46567.0,46566.0,1.23037354]
[1641229665198,0.16745047,46567.0,46566.0,1.23037354]
[1641229665397,0.16745047,46567.0,46566.0,0.59650688]
[1641229665598,0.16745047,46567.0,46566.0,0.02]
[1641229665998,0.00945047,46567.0,46566.0,0.02]
[1641229666597,0.17045047,46567.0,46566.0,0.02]
[1641229666799,0.16945047,46567.0,46566.0,0.02]
[1641229667004,0.17924447,46567.0,46566.0,0.02]
[1641229667199,0.18024447,46567.0,46566.0,0.02]
[1641229667500,0.18124447,46567.0,46566.0,0.02]
[1641229667900,0.23504447,46567.0,46566.0,0.02]
[1641229668099,0.01924447,46567.0,46566.0,0.02]
[1641229668503,0.17524447,46567.0,46566.0,0.02]
[1641229669102,0.39104447,46567.0,46566.0,0.02]
[1641229669504,0.39004447,46567.0,46566.0,0.02]
[1641229669904,0.23404447,46567.0,46566.0,0.02]
[1641229670703,0.39204447,46567.0,46566.0,0.02]
[1641229670906,0.17624447,46567.0,46566.0,0.02]
[1641229671105,0.39204447,46567.0,46566.0,0.02]
[1641229671407,1.52404447,46567.0,46566.0,0.02]
[1641229671804,1.31024447,46567.0,46566.0,0.02]
[1641229672007,1.15124447,46567.0,46566.0,0.02]
[1641229672206,1.15224447,46567.0,46566.0,0.02]
[1641229672407,1.36704447,46567.0,46566.0,0.02]
[1641229672606,1.52404447,46567.0,46566.0,0.02]
[1641229672809,1.52404447,46567.0,46565.0,0.14033567]
[1641229673008,0.002,46566.0,46565.0,0.14033567]
[1641229673407,0.001,46566.0,46565.0,0.14033567]
[1641229673610,0.001,46566.0,46562.0,0.57650688]
[1641229673611,0.01045047,46566.0,46561.0,0.71684255]
[1641229673809,0.001,46562.0,46561.0,0.71684255]
[1641229674221,0.002,46562.0,46561.0,0.71684255]
[1641229674624,1.29945047,46562.0,46561.0,0.71684255]
[1641229674822,1.31024447,46562.0,46561.0,0.71684255]
[1641229675024,1.31024447,46562.0,46561.0,0.57650688]
[1641229675622,1.31024447,46562.0,46559.0,0.80678571]
[1641229675823,1.313,46560.0,46559.0,0.80678571]
[1641229676427,1.34293635,46560.0,46550.0,1.37201402]
[1641229676622,1.132,46550.0,46545.0,0.84526486]
[1641229676824,1.312,46548.0,46545.0,0.84526486]
[1641229677227,1.312,46548.0,46545.0,0.70492919]
[1641229677424,0.00845047,46547.0,46545.0,0.70492919]
[1641229677624,0.001,46546.0,46541.0,0.82449303]
[1641229677824,0.001,46542.0,46541.0,0.82449303]
[1641229678024,0.001,46542.0,46534.0,1.02598195]
[1641229678224,0.00845047,46542.0,46534.0,1.02598195]
[1641229678424,0.00845047,46542.0,46534.0,0.84598195]
[1641229678624,0.157,46542.0,46535.0,0.01212281]
[1641229678824,0.337,46542.0,46535.0,0.01212281]
[1641229679026,0.00845047,46541.0,46535.0,0.01212281]
[1641229679226,0.14878614,46541.0,46535.0,0.01212281]
[1641229679627,0.00845047,46540.0,46535.0,0.01212281]
[1641229680028,0.009794,46539.0,46535.0,0.01212281]
[1641229680228,0.001,46536.0,46535.0,0.01212281]
[1641229680827,0.00945047,46536.0,46535.0,0.01212281]
[1641229681031,0.00945047,46536.0,46532.0,0.21361265]
[1641229681229,0.00845047,46537.0,46532.0,0.21361265]
[1641229681432,0.00845047,46536.0,46535.0,0.01212281]
[1641229681631,0.00845047,46536.0,46533.0,0.01212281]
[1641229682029,0.00845047,46538.0,46535.0,0.01212281]
[1641229682231,0.00845047,46535.0,46534.0,0.01212281]
[1641229682432,0.00845047,46537.0,46533.0,1.39762986]
[1641229682728,0.00105047,46535.0,46533.0,1.39762986]
[1641229682929,0.165,46538.0,46534.0,0.18]
[1641229683229,0.165,46538.0,46535.0,0.02148835]
[1641229683842,0.14033567,46551.0,46537.0,0.20148509]